[Event "Late-Titled-Tuesday-Blitz-September-19-2023"]
[Site "Chess.com"]
[Date "2023.09.19"]
[Round "9"]
[White "reevecanada"]
[Black "Abund"]
[Result "0-1"]
[WhiteElo "2533"]
[BlackElo "2777"]
[TimeControl "180+1"]
[EndTime "15:44:53 PDT"]
[Termination "Abund won by checkmate"]

1. e4 {[%clk 0:02:54.1]} 1... e5 {[%clk 0:03:00]} 2. Nf3 {[%clk 0:02:53.2]} 2...
Nc6 {[%clk 0:03:00.7]} 3. d4 {[%clk 0:02:53.9]} 3... exd4 {[%clk 0:03:00]} 4.
Nxd4 {[%clk 0:02:54.6]} 4... Nf6 {[%clk 0:03:00.7]} 5. Nxc6 {[%clk 0:02:55.2]}
5... bxc6 {[%clk 0:03:01.6]} 6. Nd2 {[%clk 0:02:55.7]} 6... d5 {[%clk
0:03:01.4]} 7. exd5 {[%clk 0:02:54.8]} 7... cxd5 {[%clk 0:03:02.3]} 8. Bb5+
{[%clk 0:02:55.1]} 8... Bd7 {[%clk 0:03:02.7]} 9. Bxd7+ {[%clk 0:02:55.8]} 9...
Qxd7 {[%clk 0:03:03.6]} 10. O-O {[%clk 0:02:56.1]} 10... Be7 {[%clk 0:03:04.2]}
11. b3 {[%clk 0:02:56.2]} 11... O-O {[%clk 0:03:04.4]} 12. Bb2 {[%clk
0:02:56.8]} 12... Rfe8 {[%clk 0:02:45.5]} 13. Qf3 {[%clk 0:02:55.3]} 13... Ng4
{[%clk 0:02:39.4]} 14. h3 {[%clk 0:02:49.6]} 14... Bf6 {[%clk 0:02:36]} 15. Bxf6
{[%clk 0:02:49]} 15... Nxf6 {[%clk 0:02:36.5]} 16. c4 {[%clk 0:02:49.1]} 16...
c6 {[%clk 0:02:28.2]} 17. Rad1 {[%clk 0:02:48.8]} 17... h6 {[%clk 0:02:27]} 18.
cxd5 {[%clk 0:02:48.5]} 18... cxd5 {[%clk 0:02:26.7]} 19. Nc4 {[%clk 0:02:48]}
19... Rad8 {[%clk 0:02:25.8]} 20. Rd4 {[%clk 0:02:45.7]} 20... Re4 {[%clk
0:02:17.9]} 21. Rfd1 {[%clk 0:02:41.8]} 21... Rxd4 {[%clk 0:02:13.7]} 22. Rxd4
{[%clk 0:02:42.7]} 22... Qb5 {[%clk 0:02:00]} 23. Ne3 {[%clk 0:02:40.9]} 23...
Qc5 {[%clk 0:01:41.1]} 24. Qd1 {[%clk 0:02:38.4]} 24... Qa5 {[%clk 0:01:38.3]}
25. a4 {[%clk 0:02:36.7]} 25... Qc5 {[%clk 0:01:28.9]} 26. b4 {[%clk 0:02:34.7]}
26... Qc6 {[%clk 0:01:22.9]} 27. a5 {[%clk 0:02:29.2]} 27... Qb5 {[%clk
0:01:18.1]} 28. g3 {[%clk 0:02:22.1]} 28... g6 {[%clk 0:01:16.6]} 29. Qf3 {[%clk
0:02:20.2]} 29... Kg7 {[%clk 0:01:15.9]} 30. Qf4 {[%clk 0:02:19.9]} 30... Qc6
{[%clk 0:01:09.2]} 31. Qe5 {[%clk 0:02:15.4]} 31... Re8 {[%clk 0:01:08.8]} 32.
Qf4 {[%clk 0:02:07.8]} 32... a6 {[%clk 0:01:06.8]} 33. Qf3 {[%clk 0:02:04.3]}
33... Re4 {[%clk 0:01:04.4]} 34. Qd1 {[%clk 0:02:03.6]} 34... Qe6 {[%clk
0:01:00.7]} 35. Kh2 {[%clk 0:01:56.8]} 35... Qe5 {[%clk 0:01:00]} 36. Rxe4
{[%clk 0:01:52]} 36... Qxe4 {[%clk 0:00:55.5]} 37. Nc2 {[%clk 0:01:45.3]} 37...
Qc4 {[%clk 0:00:44.7]} 38. Qd2 {[%clk 0:01:38.4]} 38... h5 {[%clk 0:00:42.5]}
39. Nd4 {[%clk 0:01:34.6]} 39... Ne4 {[%clk 0:00:41]} 40. Qb2 {[%clk 0:01:33]}
40... Nc3 {[%clk 0:00:29.5]} 41. b5 {[%clk 0:01:17]} 41... Qxd4 {[%clk
0:00:22.4]} 42. b6 {[%clk 0:01:16.8]} 42... Nb5 {[%clk 0:00:22.1]} 43. Qc2
{[%clk 0:01:09.6]} 43... Nd6 {[%clk 0:00:19.4]} 44. Kg2 {[%clk 0:00:57.4]} 44...
Qe4+ {[%clk 0:00:19.1]} 45. Qxe4 {[%clk 0:00:56.6]} 45... dxe4 {[%clk 0:00:20]}
46. f3 {[%clk 0:00:56.5]} 46... Nb7 {[%clk 0:00:17]} 47. fxe4 {[%clk 0:00:54.1]}
47... Kf6 {[%clk 0:00:17.5]} 48. Kf3 {[%clk 0:00:54.2]} 48... Ke5 {[%clk
0:00:18]} 49. Ke3 {[%clk 0:00:54.8]} 49... Nxa5 {[%clk 0:00:18.5]} 50. Kd3
{[%clk 0:00:55.2]} 50... Kd6 {[%clk 0:00:17.3]} 51. Kd4 {[%clk 0:00:55.4]} 51...
Nb7 {[%clk 0:00:17.1]} 52. Kc4 {[%clk 0:00:54.8]} 52... Kc6 {[%clk 0:00:17.1]}
53. Kd4 {[%clk 0:00:55.5]} 53... a5 {[%clk 0:00:15.7]} 54. Ke5 {[%clk
0:00:54.5]} 54... a4 {[%clk 0:00:16.1]} 55. Kf6 {[%clk 0:00:55.4]} 55... Nd8
{[%clk 0:00:10.1]} 56. Ke7 {[%clk 0:00:54]} 56... a3 {[%clk 0:00:09.7]} 57. Kxd8
{[%clk 0:00:54.8]} 57... Kxb6 {[%clk 0:00:09.8]} 58. Ke7 {[%clk 0:00:54.5]}
58... a2 {[%clk 0:00:09.4]} 59. Kxf7 {[%clk 0:00:55.4]} 59... a1=Q {[%clk
0:00:09.8]} 60. Kxg6 {[%clk 0:00:56.3]} 60... Qe5 {[%clk 0:00:10.1]} 61. g4
{[%clk 0:00:56.7]} 61... h4 {[%clk 0:00:08.6]} 62. g5 {[%clk 0:00:56.7]} 62...
Qxe4+ {[%clk 0:00:09.1]} 63. Kh5 {[%clk 0:00:57.1]} 63... Qf5 {[%clk 0:00:08.1]}
64. Kxh4 {[%clk 0:00:56.7]} 64... Kc6 {[%clk 0:00:08.6]} 65. g6 {[%clk
0:00:56.9]} 65... Kd6 {[%clk 0:00:06.1]} 66. g7 {[%clk 0:00:57.2]} 66... Qh7+
{[%clk 0:00:06.5]} 67. Kg5 {[%clk 0:00:57.2]} 67... Qxg7+ {[%clk 0:00:06.8]} 68.
Kh4 {[%clk 0:00:58.1]} 68... Ke5 {[%clk 0:00:05.9]} 69. Kh5 {[%clk 0:00:59]}
69... Kf5 {[%clk 0:00:06.2]} 70. Kh4 {[%clk 0:00:59.9]} 70... Qg5# {[%clk
0:00:06.5]} 0-1

[Event "Late-Titled-Tuesday-Blitz-September-19-2023"]
[Site "Chess.com"]
[Date "2023.09.19"]
[Round "9"]
[White "queen_iryna"]
[Black "midedu"]
[Result "1-0"]
[WhiteElo "2385"]
[BlackElo "2066"]
[TimeControl "180+1"]
[EndTime "15:44:54 PDT"]
[Termination "queen_iryna won on time"]

1. e4 {[%clk 0:03:00.3]} 1... c5 {[%clk 0:02:57.8]} 2. Nf3 {[%clk 0:02:59.6]}
2... Nc6 {[%clk 0:02:57.8]} 3. Bb5 {[%clk 0:02:59.6]} 3... g6 {[%clk 0:02:57.2]}
4. Bxc6 {[%clk 0:02:58.7]} 4... dxc6 {[%clk 0:02:57.1]} 5. d3 {[%clk 0:02:58.4]}
5... Bg7 {[%clk 0:02:57.6]} 6. Nc3 {[%clk 0:02:57.9]} 6... e5 {[%clk 0:02:57.5]}
7. Be3 {[%clk 0:02:57.4]} 7... b6 {[%clk 0:02:57.9]} 8. Qd2 {[%clk 0:02:57.1]}
8... h6 {[%clk 0:02:57.2]} 9. h3 {[%clk 0:02:55.2]} 9... Qc7 {[%clk 0:02:54.7]}
10. O-O {[%clk 0:02:55.2]} 10... Nf6 {[%clk 0:02:54.2]} 11. a3 {[%clk
0:02:55.6]} 11... a5 {[%clk 0:02:53.7]} 12. b4 {[%clk 0:02:38.8]} 12... axb4
{[%clk 0:02:53.3]} 13. axb4 {[%clk 0:02:39.7]} 13... Rxa1 {[%clk 0:02:53]} 14.
Rxa1 {[%clk 0:02:40.6]} 14... cxb4 {[%clk 0:02:53.3]} 15. Ne2 {[%clk 0:02:37.6]}
15... c5 {[%clk 0:02:52.1]} 16. c3 {[%clk 0:02:32.4]} 16... bxc3 {[%clk
0:02:50.7]} 17. Qxc3 {[%clk 0:02:33.3]} 17... Nd7 {[%clk 0:02:44.5]} 18. d4
{[%clk 0:02:26.5]} 18... exd4 {[%clk 0:02:36.5]} 19. Bxd4 {[%clk 0:02:26.3]}
19... Bxd4 {[%clk 0:02:34.8]} 20. Nexd4 {[%clk 0:02:25.2]} 20... O-O {[%clk
0:02:24.3]} 21. Nc2 {[%clk 0:02:05.2]} 21... Bb7 {[%clk 0:02:22.4]} 22. Nd2
{[%clk 0:01:57.1]} 22... Re8 {[%clk 0:02:18.7]} 23. Ne3 {[%clk 0:01:52.1]} 23...
b5 {[%clk 0:01:54.5]} 24. Ng4 {[%clk 0:01:50.3]} 24... Qf4 {[%clk 0:01:30.3]}
25. Ra7 {[%clk 0:01:38.1]} 25... Rb8 {[%clk 0:01:27.6]} 26. g3 {[%clk
0:01:32.3]} 26... b4 {[%clk 0:01:16.7]} 27. Qb2 {[%clk 0:01:28]} 27... Qg5
{[%clk 0:01:10.2]} 28. Nf3 {[%clk 0:01:26.9]} 28... Qe7 {[%clk 0:01:06.4]} 29.
Nxh6+ {[%clk 0:01:25.3]} 29... Kh7 {[%clk 0:01:06.3]} 30. Ng4 {[%clk 0:01:16.5]}
30... c4 {[%clk 0:00:57.6]} 31. h4 {[%clk 0:01:09.2]} 31... c3 {[%clk
0:00:57.1]} 32. Qb3 {[%clk 0:01:05]} 32... Kg7 {[%clk 0:00:55.2]} 33. Ng5 {[%clk
0:00:58.8]} 33... Nc5 {[%clk 0:00:28.1]} 34. Qxb4 {[%clk 0:00:49.2]} 34... f6
{[%clk 0:00:21.1]} 35. Qxc3 {[%clk 0:00:42.3]} 35... Nxe4 {[%clk 0:00:04.2]} 36.
Nxe4 {[%clk 0:00:40.4]} 36... Qxe4 {[%clk 0:00:02.8]} 37. Qxf6+ {[%clk
0:00:39.9]} 37... Kg8 {[%clk 0:00:02.8]} 38. f3 {[%clk 0:00:13.8]} 38... Qxf3
{[%clk 0:00:02.5]} 39. Qxf3 {[%clk 0:00:10.1]} 39... Bxf3 {[%clk 0:00:01.7]} 40.
Ne5 {[%clk 0:00:10]} 40... Be4 {[%clk 0:00:01.1]} 41. Kf2 {[%clk 0:00:08.9]} 1-0

[Event "Late-Titled-Tuesday-Blitz-September-19-2023"]
[Site "Chess.com"]
[Date "2023.09.19"]
[Round "9"]
[White "gabduschew"]
[Black "Arimin1329"]
[Result "1-0"]
[WhiteElo "2367"]
[BlackElo "2272"]
[TimeControl "180+1"]
[EndTime "15:44:55 PDT"]
[Termination "gabduschew won by resignation"]

1. g3 {[%clk 0:02:58.9]} 1... g6 {[%clk 0:02:59.1]} 2. Bg2 {[%clk 0:02:58.5]}
2... Bg7 {[%clk 0:03:00]} 3. d3 {[%clk 0:02:58.8]} 3... d6 {[%clk 0:02:58.2]} 4.
c4 {[%clk 0:02:58]} 4... c5 {[%clk 0:02:57.6]} 5. Nc3 {[%clk 0:02:57.6]} 5...
Nc6 {[%clk 0:02:57.7]} 6. a3 {[%clk 0:02:55.9]} 6... e6 {[%clk 0:02:54.9]} 7. e4
{[%clk 0:02:52.8]} 7... Nge7 {[%clk 0:02:55.2]} 8. Nge2 {[%clk 0:02:52.5]} 8...
O-O {[%clk 0:02:55.4]} 9. Rb1 {[%clk 0:02:51.7]} 9... b6 {[%clk 0:02:31.2]} 10.
b4 {[%clk 0:02:49.4]} 10... Bb7 {[%clk 0:02:30.7]} 11. O-O {[%clk 0:02:48.3]}
11... Rc8 {[%clk 0:02:28.5]} 12. Be3 {[%clk 0:02:45.7]} 12... e5 {[%clk
0:02:15.3]} 13. bxc5 {[%clk 0:02:38.9]} 13... dxc5 {[%clk 0:02:14.2]} 14. Nd5
{[%clk 0:02:38.3]} 14... Nxd5 {[%clk 0:02:11.3]} 15. exd5 {[%clk 0:02:36.8]}
15... Nd4 {[%clk 0:02:11.1]} 16. Nxd4 {[%clk 0:02:29.9]} 16... exd4 {[%clk
0:02:09.7]} 17. Bf4 {[%clk 0:02:29.3]} 17... Re8 {[%clk 0:02:08.8]} 18. a4
{[%clk 0:02:27.9]} 18... Be5 {[%clk 0:01:54.6]} 19. Bxe5 {[%clk 0:02:21.3]}
19... Rxe5 {[%clk 0:01:55.5]} 20. a5 {[%clk 0:02:20.5]} 20... Rb8 {[%clk
0:01:38.7]} 21. axb6 {[%clk 0:02:06.2]} 21... axb6 {[%clk 0:01:38.6]} 22. Re1
{[%clk 0:02:06]} 22... Qd6 {[%clk 0:01:32]} 23. Rxe5 {[%clk 0:02:03.6]} 23...
Qxe5 {[%clk 0:01:32.9]} 24. Rxb6 {[%clk 0:02:02.9]} 24... Bc8 {[%clk 0:01:29.1]}
25. Rxb8 {[%clk 0:01:58]} 25... Qxb8 {[%clk 0:01:30]} 26. h3 {[%clk 0:01:44.7]}
26... Qe5 {[%clk 0:01:25.9]} 27. Qf3 {[%clk 0:01:25.1]} 27... Kg7 {[%clk
0:01:15]} 28. Qe4 {[%clk 0:01:20.3]} 28... Qd6 {[%clk 0:01:11.7]} 29. g4 {[%clk
0:01:15.6]} 29... f5 {[%clk 0:01:00.5]} 30. Qf3 {[%clk 0:01:00.5]} 30... Qe5
{[%clk 0:00:57.1]} 31. g5 {[%clk 0:00:48.1]} 31... Bd7 {[%clk 0:00:47]} 32. h4
{[%clk 0:00:45.9]} 32... Ba4 {[%clk 0:00:41.7]} 33. Bf1 {[%clk 0:00:39.7]} 33...
Qe1 {[%clk 0:00:37.8]} 34. Qe2 {[%clk 0:00:37.3]} 34... Qxe2 {[%clk 0:00:38]}
35. Bxe2 {[%clk 0:00:36.9]} 35... Kf7 {[%clk 0:00:38.3]} 36. f4 {[%clk
0:00:33.7]} 36... Ke7 {[%clk 0:00:38.2]} 37. Kf1 {[%clk 0:00:33.4]} 37... Kd6
{[%clk 0:00:36.8]} 38. Ke1 {[%clk 0:00:33.4]} 38... Bd7 {[%clk 0:00:33.3]} 39.
Bd1 {[%clk 0:00:31.2]} 39... Bc8 {[%clk 0:00:32.2]} 40. Kd2 {[%clk 0:00:31.2]}
40... Bd7 {[%clk 0:00:29.3]} 41. Kc1 {[%clk 0:00:30.9]} 41... Be8 {[%clk
0:00:28.8]} 42. Kb2 {[%clk 0:00:30.6]} 42... Kc7 {[%clk 0:00:29.1]} 43. Ka3
{[%clk 0:00:30.4]} 43... Kb6 {[%clk 0:00:29.6]} 44. Ba4 {[%clk 0:00:30.1]} 44...
Bf7 {[%clk 0:00:28.9]} 45. Bd7 {[%clk 0:00:28.9]} 45... Kc7 {[%clk 0:00:25.5]}
46. Bb5 {[%clk 0:00:27.4]} 46... Kb6 {[%clk 0:00:23.1]} 47. Ka4 {[%clk
0:00:27.5]} 47... Bg8 {[%clk 0:00:22]} 48. Be8 {[%clk 0:00:26]} 48... Ka6 {[%clk
0:00:21.1]} 49. d6 {[%clk 0:00:24.4]} 49... Kb6 {[%clk 0:00:20.9]} 50. d7 {[%clk
0:00:24.3]} 50... Kc7 {[%clk 0:00:20.6]} 51. Kb5 {[%clk 0:00:24.8]} 51... Kd8
{[%clk 0:00:13.1]} 52. Kxc5 {[%clk 0:00:24.4]} 52... h5 {[%clk 0:00:13.3]} 1-0

[Event "Late-Titled-Tuesday-Blitz-September-19-2023"]
[Site "Chess.com"]
[Date "2023.09.19"]
[Round "9"]
[White "jefferyx"]
[Black "IlanSchnaider"]
[Result "1-0"]
[WhiteElo "3000"]
[BlackElo "2760"]
[TimeControl "180+1"]
[EndTime "15:44:57 PDT"]
[Termination "jefferyx won on time"]

1. c4 {[%clk 0:03:00.9]} 1... Nf6 {[%clk 0:02:59.7]} 2. Nc3 {[%clk 0:03:00.8]}
2... g6 {[%clk 0:03:00.3]} 3. e4 {[%clk 0:03:00.4]} 3... e5 {[%clk 0:03:00.3]}
4. g3 {[%clk 0:02:44.3]} 4... Bg7 {[%clk 0:03:00.5]} 5. Bg2 {[%clk 0:02:44.9]}
5... O-O {[%clk 0:03:01.1]} 6. Nge2 {[%clk 0:02:45.6]} 6... d6 {[%clk
0:03:01.7]} 7. O-O {[%clk 0:02:46.3]} 7... Nc6 {[%clk 0:02:58]} 8. d3 {[%clk
0:02:45]} 8... Nd7 {[%clk 0:02:55.4]} 9. f4 {[%clk 0:02:39.9]} 9... a5 {[%clk
0:02:55.2]} 10. f5 {[%clk 0:02:37.9]} 10... Nc5 {[%clk 0:02:55.2]} 11. Nd5
{[%clk 0:02:35.4]} 11... f6 {[%clk 0:02:28.6]} 12. Be3 {[%clk 0:02:33.8]} 12...
Bd7 {[%clk 0:02:25.3]} 13. Qd2 {[%clk 0:02:31.2]} 13... Nb4 {[%clk 0:02:21.5]}
14. Nxb4 {[%clk 0:02:09.8]} 14... axb4 {[%clk 0:02:21.6]} 15. Qxb4 {[%clk
0:02:10.7]} 15... Nxd3 {[%clk 0:02:20.4]} 16. Qxb7 {[%clk 0:02:11.1]} 16... Kh8
{[%clk 0:01:47.4]} 17. Qb3 {[%clk 0:02:09.1]} 17... Nc5 {[%clk 0:01:46]} 18. Qc2
{[%clk 0:02:09.3]} 18... Qe8 {[%clk 0:01:36.9]} 19. Nc3 {[%clk 0:02:08.3]} 19...
Bc6 {[%clk 0:01:36]} 20. b4 {[%clk 0:02:04.6]} 20... Na4 {[%clk 0:01:33.1]} 21.
Nd5 {[%clk 0:02:02.9]} 21... Qd7 {[%clk 0:01:29.5]} 22. Rad1 {[%clk 0:01:59.1]}
22... Nb6 {[%clk 0:01:28.2]} 23. Nxb6 {[%clk 0:01:48]} 23... cxb6 {[%clk
0:01:26.2]} 24. b5 {[%clk 0:01:48.7]} 24... Bb7 {[%clk 0:01:22.2]} 25. Bxb6
{[%clk 0:01:49.2]} 25... Rfc8 {[%clk 0:01:20.2]} 26. a4 {[%clk 0:01:43.2]} 26...
gxf5 {[%clk 0:01:15.7]} 27. c5 {[%clk 0:01:20.8]} 27... Bxe4 {[%clk 0:01:10]}
28. Bxe4 {[%clk 0:01:21]} 28... fxe4 {[%clk 0:01:10.9]} 29. Qxe4 {[%clk
0:01:21.6]} 29... f5 {[%clk 0:00:20.7]} 30. Rxf5 {[%clk 0:01:16.1]} 30... Rxa4
{[%clk 0:00:17.4]} 31. Qxa4 {[%clk 0:01:10.5]} 31... Qxf5 {[%clk 0:00:17.6]} 32.
cxd6 {[%clk 0:01:10.6]} 32... Qd7 {[%clk 0:00:11.9]} 33. Qa7 {[%clk 0:01:08]}
33... Qg4 {[%clk 0:00:08]} 34. Rf1 {[%clk 0:00:45.8]} 34... Rf8 {[%clk 0:00:03]}
35. Ra1 {[%clk 0:00:28.1]} 35... e4 {[%clk 0:00:02.5]} 36. d7 {[%clk 0:00:25.3]}
36... Bxa1 {[%clk 0:00:01.8]} 37. Qxa1+ {[%clk 0:00:26.2]} 37... Kg8 {[%clk
0:00:02.2]} 38. d8=Q {[%clk 0:00:21.3]} 38... Rxd8 {[%clk 0:00:02.8]} 39. Bxd8
{[%clk 0:00:22.2]} 39... e3 {[%clk 0:00:03.6]} 40. Bb6 {[%clk 0:00:19.3]} 40...
Qf3 {[%clk 0:00:03.4]} 41. Qe1 {[%clk 0:00:18.9]} 41... e2 {[%clk 0:00:03.4]}
42. Bf2 {[%clk 0:00:19.2]} 42... Qd3 {[%clk 0:00:02.9]} 43. b6 {[%clk
0:00:20.1]} 43... Qd1 {[%clk 0:00:01.5]} 44. b7 {[%clk 0:00:21]} 44... Qb3
{[%clk 0:00:02]} 45. Qxe2 {[%clk 0:00:21.2]} 45... Qxb7 {[%clk 0:00:02.7]} 46.
Qe8+ {[%clk 0:00:21.3]} 46... Kg7 {[%clk 0:00:03.2]} 47. Bd4+ {[%clk 0:00:21.9]}
47... Kh6 {[%clk 0:00:03.6]} 48. Qe6+ {[%clk 0:00:22.4]} 48... Kh5 {[%clk
0:00:02.8]} 49. Qf5+ {[%clk 0:00:20.2]} 49... Kh6 {[%clk 0:00:02.8]} 50. Qf6+
{[%clk 0:00:15.3]} 50... Kh5 {[%clk 0:00:03.2]} 51. Qh4+ {[%clk 0:00:16.2]}
51... Kg6 {[%clk 0:00:03.6]} 52. Qg4+ {[%clk 0:00:17.1]} 1-0

[Event "Late-Titled-Tuesday-Blitz-September-19-2023"]
[Site "Chess.com"]
[Date "2023.09.19"]
[Round "9"]
[White "kuli4ik"]
[Black "FairChess_on_YouTube"]
[Result "1/2-1/2"]
[WhiteElo "2964"]
[BlackElo "3074"]
[TimeControl "180+1"]
[EndTime "15:45:06 PDT"]
[Termination "Game drawn - insufficient material"]

1. Nf3 {[%clk 0:02:59.5]} 1... b5 {[%clk 0:02:57.1]} 2. g3 {[%clk 0:02:57.1]}
2... Bb7 {[%clk 0:02:56.7]} 3. Bg2 {[%clk 0:02:56.9]} 3... Nf6 {[%clk 0:02:57]}
4. O-O {[%clk 0:02:50.5]} 4... g6 {[%clk 0:02:56.1]} 5. b3 {[%clk 0:02:48.1]}
5... Bg7 {[%clk 0:02:55.6]} 6. Bb2 {[%clk 0:02:47.5]} 6... O-O {[%clk
0:02:55.7]} 7. c4 {[%clk 0:02:45.2]} 7... bxc4 {[%clk 0:02:55.6]} 8. bxc4 {[%clk
0:02:44]} 8... Na6 {[%clk 0:02:52.2]} 9. d3 {[%clk 0:02:34.3]} 9... Rb8 {[%clk
0:02:52.1]} 10. Bc3 {[%clk 0:02:31.7]} 10... c5 {[%clk 0:02:40.1]} 11. Qa4
{[%clk 0:02:25.7]} 11... d6 {[%clk 0:02:34.1]} 12. Nbd2 {[%clk 0:02:24.7]} 12...
Qd7 {[%clk 0:02:33.7]} 13. Qxd7 {[%clk 0:02:14.6]} 13... Nxd7 {[%clk 0:02:34.6]}
14. Bxg7 {[%clk 0:02:14.3]} 14... Kxg7 {[%clk 0:02:35.5]} 15. Rfb1 {[%clk
0:02:12]} 15... Bc6 {[%clk 0:02:32]} 16. Ne1 {[%clk 0:02:03.1]} 16... Ne5 {[%clk
0:02:28.7]} 17. Rb3 {[%clk 0:01:50.6]} 17... Rb6 {[%clk 0:02:25.4]} 18. f4
{[%clk 0:01:40.6]} 18... Bxg2 {[%clk 0:02:24.4]} 19. fxe5 {[%clk 0:01:39.1]}
19... Bc6 {[%clk 0:02:23.8]} 20. exd6 {[%clk 0:01:35.9]} 20... exd6 {[%clk
0:02:24.7]} 21. Rxb6 {[%clk 0:01:35.7]} 21... axb6 {[%clk 0:02:24.4]} 22. Rb1
{[%clk 0:01:35.7]} 22... Rb8 {[%clk 0:02:24.1]} 23. Nc2 {[%clk 0:01:25.4]} 23...
d5 {[%clk 0:02:18.1]} 24. cxd5 {[%clk 0:01:24.3]} 24... Bxd5 {[%clk 0:02:18]}
25. a3 {[%clk 0:01:15.9]} 25... b5 {[%clk 0:02:17.2]} 26. Kf2 {[%clk 0:01:15.6]}
26... f5 {[%clk 0:02:13.1]} 27. Ne3 {[%clk 0:01:01.2]} 27... Be6 {[%clk
0:02:07.7]} 28. h4 {[%clk 0:00:56.2]} 28... Kf6 {[%clk 0:02:06]} 29. Nc2 {[%clk
0:00:55.2]} 29... b4 {[%clk 0:02:02.7]} 30. axb4 {[%clk 0:00:54]} 30... cxb4
{[%clk 0:02:03.6]} 31. Nd4 {[%clk 0:00:54.1]} 31... Bf7 {[%clk 0:01:55.6]} 32.
Rc1 {[%clk 0:00:53.5]} 32... Rb6 {[%clk 0:01:53.9]} 33. Nc4 {[%clk 0:00:52.7]}
33... Bxc4 {[%clk 0:01:52.8]} 34. Rxc4 {[%clk 0:00:53.4]} 34... Ke5 {[%clk
0:01:38.4]} 35. Nb3 {[%clk 0:00:47.8]} 35... Kd6 {[%clk 0:01:37.2]} 36. Ke3
{[%clk 0:00:38.3]} 36... Nc7 {[%clk 0:01:27.4]} 37. Kd2 {[%clk 0:00:30.3]} 37...
Ne6 {[%clk 0:01:18.5]} 38. e4 {[%clk 0:00:30]} 38... fxe4 {[%clk 0:01:17.6]} 39.
dxe4 {[%clk 0:00:30.3]} 39... Nd8 {[%clk 0:01:12.9]} 40. Rd4+ {[%clk 0:00:29.7]}
40... Ke7 {[%clk 0:01:09.2]} 41. Kd3 {[%clk 0:00:24.7]} 41... Nc6 {[%clk
0:00:45.6]} 42. Rd5 {[%clk 0:00:23.4]} 42... Ra6 {[%clk 0:00:46.1]} 43. Kc4
{[%clk 0:00:22.3]} 43... Ra2 {[%clk 0:00:44.8]} 44. Kb5 {[%clk 0:00:20.6]} 44...
Ra3 {[%clk 0:00:26.4]} 45. Rd3 {[%clk 0:00:10.6]} 45... Ne5 {[%clk 0:00:24.4]}
46. Kxb4 {[%clk 0:00:10.1]} 46... Nxd3+ {[%clk 0:00:23.7]} 47. Kxa3 {[%clk
0:00:10.1]} 47... Kd6 {[%clk 0:00:19.9]} 48. Nd2 {[%clk 0:00:08.3]} 48... Ke5
{[%clk 0:00:19.2]} 49. Nf3+ {[%clk 0:00:08.8]} 49... Kxe4 {[%clk 0:00:17.2]} 50.
Ng5+ {[%clk 0:00:09.2]} 50... Kf5 {[%clk 0:00:16.5]} 51. Nxh7 {[%clk 0:00:10.1]}
51... Kg4 {[%clk 0:00:15.8]} 52. Nf8 {[%clk 0:00:10.3]} 52... Ne5 {[%clk
0:00:15.4]} 53. Nxg6 {[%clk 0:00:10.5]} 53... Nxg6 {[%clk 0:00:15.6]} 54. Kb4
{[%clk 0:00:11.3]} 54... Nxh4 {[%clk 0:00:15.8]} 55. gxh4 {[%clk 0:00:11.3]}
55... Kxh4 {[%clk 0:00:16.7]} 1/2-1/2

[Event "Late-Titled-Tuesday-Blitz-September-19-2023"]
[Site "Chess.com"]
[Date "2023.09.19"]
[Round "9"]
[White "maciek_92"]
[Black "hansen"]
[Result "1-0"]
[WhiteElo "2761"]
[BlackElo "2915"]
[TimeControl "180+1"]
[EndTime "15:45:09 PDT"]
[Termination "maciek_92 won on time"]

1. c4 {[%clk 0:03:00.9]} 1... e5 {[%clk 0:02:59.6]} 2. g3 {[%clk 0:03:01.6]}
2... Nf6 {[%clk 0:02:59.3]} 3. Bg2 {[%clk 0:03:02.3]} 3... d5 {[%clk 0:02:59.9]}
4. cxd5 {[%clk 0:03:02.4]} 4... Nxd5 {[%clk 0:03:00.8]} 5. Nc3 {[%clk 0:03:03]}
5... Nb6 {[%clk 0:03:00.5]} 6. e3 {[%clk 0:03:03.3]} 6... g6 {[%clk 0:02:55.7]}
7. Nge2 {[%clk 0:03:01.7]} 7... Bg7 {[%clk 0:02:56]} 8. f4 {[%clk 0:03:01.2]}
8... exf4 {[%clk 0:02:54.4]} 9. Nxf4 {[%clk 0:03:02.1]} 9... O-O {[%clk
0:02:54.3]} 10. O-O {[%clk 0:03:02.8]} 10... c5 {[%clk 0:02:48.2]} 11. a4 {[%clk
0:02:57.9]} 11... Na6 {[%clk 0:02:28.8]} 12. a5 {[%clk 0:02:51.4]} 12... Nc4
{[%clk 0:02:29.1]} 13. Qa4 {[%clk 0:02:50.6]} 13... Nd6 {[%clk 0:02:06.4]} 14.
Nfd5 {[%clk 0:02:04.9]} 14... Bd7 {[%clk 0:02:04]} 15. Qf4 {[%clk 0:02:01.5]}
15... Bc6 {[%clk 0:01:59.6]} 16. e4 {[%clk 0:01:43.2]} 16... Nc4 {[%clk
0:01:45.4]} 17. d3 {[%clk 0:01:30]} 17... Ne5 {[%clk 0:01:45.2]} 18. Rd1 {[%clk
0:01:09.7]} 18... Nb4 {[%clk 0:01:41.1]} 19. Nxb4 {[%clk 0:00:58.8]} 19... Qd4+
{[%clk 0:01:33.7]} 20. Be3 {[%clk 0:00:58.1]} 20... Qxb4 {[%clk 0:01:33.6]} 21.
Nd5 {[%clk 0:00:19]} 21... Bxd5 {[%clk 0:01:23.1]} 22. exd5 {[%clk 0:00:19.9]}
22... Qb5 {[%clk 0:01:23.5]} 23. Qa4 {[%clk 0:00:13.2]} 23... Qxb2 {[%clk
0:01:13.3]} 24. Rab1 {[%clk 0:00:05.5]} 24... Qe2 {[%clk 0:01:09.2]} 25. Bxc5
{[%clk 0:00:02.8]} 25... Nxd3 {[%clk 0:01:02.5]} 26. Qc4 {[%clk 0:00:02.6]}
26... Rfc8 {[%clk 0:00:50.2]} 27. Qxd3 {[%clk 0:00:03.3]} 27... Qxd3 {[%clk
0:00:48.4]} 28. Rxd3 {[%clk 0:00:04.2]} 28... Rxc5 {[%clk 0:00:49]} 29. d6
{[%clk 0:00:05.1]} 29... Rd8 {[%clk 0:00:46.3]} 30. Rxb7 {[%clk 0:00:05.8]}
30... Rxa5 {[%clk 0:00:46]} 31. Bd5 {[%clk 0:00:05.6]} 31... Bf8 {[%clk
0:00:22.3]} 32. Bxf7+ {[%clk 0:00:05.6]} 32... Kh8 {[%clk 0:00:20.8]} 33. d7
{[%clk 0:00:05.8]} 33... Kg7 {[%clk 0:00:18.6]} 34. Be8 {[%clk 0:00:05.1]} 34...
Bc5+ {[%clk 0:00:18]} 35. Kg2 {[%clk 0:00:05.1]} 35... Bb6 {[%clk 0:00:17.5]}
36. Rc3 {[%clk 0:00:03.9]} 36... Rc5 {[%clk 0:00:08.7]} 37. Rxc5 {[%clk
0:00:03]} 37... Bxc5 {[%clk 0:00:09.6]} 38. Rc7 {[%clk 0:00:03.4]} 38... Bb6
{[%clk 0:00:10.1]} 39. Rc8 {[%clk 0:00:03.8]} 39... Kf6 {[%clk 0:00:10.4]} 40.
Kf3 {[%clk 0:00:04.2]} 40... Ke7 {[%clk 0:00:08.4]} 41. Ke4 {[%clk 0:00:04.9]}
41... Bg1 {[%clk 0:00:06.8]} 42. h3 {[%clk 0:00:04.8]} 42... Bh2 {[%clk
0:00:06.6]} 43. g4 {[%clk 0:00:05.5]} 43... Bg1 {[%clk 0:00:07.2]} 44. Kd5
{[%clk 0:00:06]} 44... g5 {[%clk 0:00:06.5]} 45. Kc6 {[%clk 0:00:06]} 45... h6
{[%clk 0:00:05.9]} 46. Kb7 {[%clk 0:00:06.3]} 46... Bb6 {[%clk 0:00:05.6]} 47.
Rc6 {[%clk 0:00:06.9]} 47... Be3 {[%clk 0:00:01.4]} 48. Rxh6 {[%clk 0:00:07.3]}
48... Bf2 {[%clk 0:00:01.5]} 49. Rg6 {[%clk 0:00:06.7]} 49... Be3 {[%clk
0:00:01.9]} 50. Ka6 {[%clk 0:00:06.8]} 50... Bd2 {[%clk 0:00:01.3]} 51. Rg7+
{[%clk 0:00:06.4]} 51... Kf6 {[%clk 0:00:01.3]} 52. Rf7+ {[%clk 0:00:07]} 52...
Ke6 {[%clk 0:00:01.9]} 53. Kxa7 {[%clk 0:00:07.2]} 53... Be3+ {[%clk 0:00:01.5]}
54. Kb7 {[%clk 0:00:07.8]} 1-0